Cogmind - Beta 14 @@@ ROGUE MODE // 2024.10.21 @ 17:09:27 Player: Sandwich Result: Heading to fleet! Performance ------------- Evolutions (9) 4500 Regions Visited (21) 4200 Robots Destroyed (194) 970 Value Destroyed (9080) 9080 Prototype IDs (16) 320 Alien Tech Used (1) 200 Bonus (9743) 9743 TOTAL SCORE: 29013 Bonus ------- High Alert Combat Kills 910 Follower Combat Kills 1432 Registered with UFD 300 MAIN.C Attacked Warlord 500 Warlord Defense Kills 1254 Used Core Reset Matrix 3000 Win 3000 Friendly Fire -653 Cogmind --------- Core Integrity 941/1600 Matter 28/300 Energy 100/100 System Corruption 0% Temperature Cool (1) Movement Flying (40) Location To Fleet Rendezvous Parts ------- > --- POWER (3) -------- (None) > --- PROPULSION (8) --- Q-thruster > --- UTILITY (9) ------ Advanced Coolant Injector Advanced Gravity Neutralizer Advanced Visual Processing Unit Hacking Suite Advanced Hacking Suite > --- WEAPON (5) ------- (None) > --- INVENTORY (5) ---- Phase Armor Potential Cannon Force Lance Peak State ------------ > --- POWER ------------ Antimatter Reactor Light Quantum Reactor > --- PROPULSION ------- Antigrav System Antigrav System Antigrav System Antigrav System Antigrav System Antigrav System > --- UTILITY ---------- Advanced Cooling System Large Storage Unit 0b10 Decoder Chip [Looter] Advanced Targeting Computer Improved Target Analyzer Improved Target Analyzer Improved Target Analyzer > --- WEAPON ----------- Hypervelocity Gauss Rifle KE Penetrator Bore Cannon Hardcell Cannon > --- INVENTORY -------- Neutrino Core Micro Fission Core Improved Coolant Injector Advanced Shield Generator Advanced System Shield Improved System Guard Advanced Trap Extractor Vortex Rail Long-range Proton Cannon KE Penetrator KE Penetrator Force Lance Large Botcube [Rating: 115] Favorites ----------- Power Heavy Ion Engine Engine Heavy Ion Engine Power Core Neutrino Core Reactor Antimatter Reactor Propulsion Antigrav System Treads Light Treads Leg Carbon-fiber Leg Wheel Compact Wheel Hover Unit Antigrav System Flight Unit Q-thruster Utility Large Storage Unit Device Improved Heat Sink Storage Large Storage Unit Processor Improved Target Analyzer Hackware Hacking Suite Protection Improved Core Shielding Weapon Heavy Laser Energy Gun Heavy Laser Energy Cannon Plasma Cannon Ballistic Gun KE Penetrator Ballistic Cannon Bore Cannon Launcher Advanced EMP Blaster Slashing Weapon Plasma Sword Piercing Weapon Force Lance Build | -11 -10 -10 -8 -8 -8 -8 -6 -5 -5 -5 -5 -4 -4 -4 -4 -4 -3 -3 -2 -2 -1 ------- Run | Yrd Mat Sub Mat Sto Rec Scr Fac Fac Upp Upp War Pro Fac Ext Cet Arc Res Tes Res Qua Acc Slots Evolved 18 | . . . 4 . . . 4 2 . . . . 2 . . . 2 . 2 . 2 Power 2 | . . . . . . . . . . . . . 1 . . . . . 1 . . Propulsion 6 | . . . . . . . 2 1 . . . . 1 . . . . . 1 . 1 Utility 7 | . . . 3 . . . 1 1 . . . . . . . . 1 . . . 1 Weapon 3 | . . . 1 . . . 1 . . . . . . . . . 1 . . . . Parts Attached 270 | 5 4 10 19 20 2 . 12 36 3 24 11 29 4 42 1 5 12 6 8 4 13 Power 26 | . 1 1 3 2 . . . 3 . 2 . 3 1 6 . 1 . 1 1 1 . Engine 9 | . 1 1 3 2 . . . 2 . . . . . . . . . . . . . Core 8 | . . . . . . . . 1 . 2 . 3 . 1 . 1 . . . . . Reactor 9 | . . . . . . . . . . . . . 1 5 . . . 1 1 1 . Propulsion 74 | 2 . 1 2 3 2 . 4 9 . 6 3 8 1 16 . . 2 1 2 2 10 Treads 13 | 1 . 1 1 2 2 . . 2 . . . . . . . . . . 1 1 2 Leg 33 | . . . . . . . 3 4 . 5 3 3 . 12 . . 2 . . . 1 Wheel 10 | 1 . . 1 1 . . 1 3 . 1 . 1 . . . . . . . 1 . Hover 9 | . . . . . . . . . . . . 4 1 4 . . . . . . . Flight 9 | . . . . . . . . . . . . . . . . . . 1 1 . 7 Utility 70 | 1 3 3 8 1 . . 3 7 3 7 2 10 . 7 . 1 4 1 5 1 3 Device 36 | . . 3 7 1 . . 1 6 1 1 1 4 . 3 . 1 2 . 3 . 2 Storage 6 | 1 2 . . . . . . . 1 . 1 . . 1 . . . . . . . Processor 14 | . . . 1 . . . . . . 2 . 5 . 3 . . 1 . 2 . . Hackware 5 | . . . . . . . . . . 1 . . . . . . 1 1 . 1 1 Protection 9 | . 1 . . . . . 2 1 1 3 . 1 . . . . . . . . . Artifact . | . . . . . . . . . . . . . . . . . . . . . . Weapon 100 | 2 . 5 6 14 . . 5 17 . 9 6 8 2 13 1 3 6 3 . . . Energy Gun 46 | . . 1 2 9 . . 5 13 . 6 4 4 . . . . 1 1 . . . Energy Cannon 10 | . . 4 3 2 . . . . . . . . . . . . . 1 . . . Ballistic Gun 18 | 2 . . 1 . . . . . . . . 3 . 8 1 3 . . . . . Ballistic Cannon 5 | . . . . . . . . . . . . . 1 4 . . . . . . . Launcher 13 | . . . . 3 . . . 3 . 3 2 . . 1 . . 1 . . . . Special Weapon . | . . . . . . . . . . . . . . . . . . . . . . Impact Weapon . | . . . . . . . . . . . . . . . . . . . . . . Slashing Weapon 4 | . . . . . . . . 1 . . . 1 . . . . 2 . . . . Piercing Weapon 4 | . . . . . . . . . . . . . 1 . . . 2 1 . . . Special Melee Weapon . | . . . . . . . . . . . . . . . . . . . . . . Unidentified Prototypes 17 | . . . . 3 . . 1 3 1 . 1 . . . . . 1 3 2 1 1 Corrupted Parts 4 | . . . . 1 . . . . . 3 . . . . . . . . . . . System Corruption 32 | . . . . 8 . . . . . 24 . . . . . . . . . . . Parts Lost 114 | . . 2 6 . . . 1 19 . 11 4 19 . 14 2 7 16 . 2 . 11 Power 11 | . . . 1 . . . . 1 . . . 3 . 2 1 . 2 . . . 1 Propulsion 44 | . . 1 2 . . . . 5 . 4 2 6 . 7 . 2 6 . 2 . 7 Utility 23 | . . 1 . . . . 1 3 . 5 . 5 . 1 . 2 2 . . . 3 Weapon 36 | . . . 3 . . . . 10 . 2 2 5 . 4 1 3 6 . . . . Highest Loss Streak 13 | . . 2 3 . . . 1 7 . 6 2 13 . 13 2 6 10 . 1 . 5 To Critical Strikes 1 | . . . . . . . . . . . . . . . . . 1 . . . . Average Slot Usage (%) 85 | . 93 99 93 98 97 72 85 91 93 91 99 80 96 96 94 94 74 26 46 52 48 Engine 5 | . 10 14 9 9 9 9 6 4 5 3 . . . . . . . . . . . Reactor 1 | . . . . . . . . . . . . . 4 8 6 5 2 . 3 4 2 Treads 5 | . 14 14 6 9 9 9 4 4 . . . . . . . . . . . 7 7 Leg 7 | . . . . . . . 7 8 29 25 28 10 5 7 31 28 21 . . . . Wheel 5 | . 14 14 8 9 9 9 6 10 . 1 . 1 . . . . . . . 2 2 Hover 2 | . . . . . . . . . . . . 8 23 21 . . . . . . . Device 17 | . . 13 30 27 27 27 22 24 17 16 17 13 10 4 5 4 6 . 5 4 8 Storage 7 | . 14 14 9 9 9 9 6 5 10 9 5 3 . 4 5 5 3 . . . . Processor 9 | . . . 2 9 9 9 1 . . 2 11 17 26 26 26 25 19 14 17 17 8 Hackware 1 | . . . . . . . . . . . 4 . . . . . . 5 8 11 14 Protection 1 | . 11 . . . . . 4 7 5 4 . 1 . . . . . . . . . Energy Gun 8 | . . 8 1 19 24 . 22 17 23 21 20 7 1 . . . . . . . . Energy Cannon 3 | . . 19 24 3 . . . . . . . . . . . . . . . . . Ballistic Gun 3 | . 28 . . . . . . . . . . 5 15 12 9 14 7 . . . . Peak Build Rating 115 | 5 7 12 32 33 32 23 50 79 86 87 93 99 107 115 102 95 106 50 77 99 112 Average Rating 52 | 3 6 9 28 30 30 22 39 60 84 80 83 77 103 104 92 87 83 34 67 85 88 On Entrance 54 | . 5 7 11 20 32 20 23 50 79 85 83 93 91 107 102 90 77 28 41 70 89 Naked Turns . | . . . . . . . . . . . . . . . . . . . . . . Heaviest Build 83 | 9 28 42 54 50 42 31 48 71 74 78 77 77 48 83 73 56 63 14 19 18 20 Greatest Support 125 | 20 16 16 16 20 16 16 41 82 82 82 91 91 55 125 125 125 125 7 31 19 24 Greatest Overweight (x) 4 | . 1 2 3 3 2 1 2 3 . 3 1 3 1 3 . . 1 4 . . 1 Average Overweight (x) . | . . 1 2 2 1 1 1 1 . . . . . . . . . . . . . Largest Inventory Capacity 15 | 8 15 15 15 15 15 15 15 15 15 15 15 15 5 15 15 15 15 5 5 5 5 Average Capacity 13 | 6 11 15 15 15 15 15 15 15 15 15 15 9 5 14 15 15 13 5 5 5 5 Most Carried 15 | 4 9 15 15 15 15 15 14 15 15 15 15 14 5 15 15 14 11 5 5 5 5 Average Carried 12 | 2 8 13 14 14 14 14 11 13 13 13 14 7 5 12 14 13 8 4 3 3 4 Final Capacity 15 | 8 15 15 15 15 15 15 15 15 15 15 15 5 5 15 15 15 5 5 5 5 5 Final Carried 15 | 4 9 15 15 15 15 14 14 15 13 15 14 5 5 15 14 12 4 5 3 5 5 Class Distribution -------------------- 37% | Scavenger-Gunner 18% | Commander-Mutant 13% | Mutant 10% | Scavenger-Tank 6% | Commander-Gunner 5% | Hacker-Mutant 3% | Scavenger-Mutant Dominant Class ---------------- Mutant | -10/Materials Mutant | -10/Subcaves Scavenger-Gunner | -8/Materials Commander-Gunner | -8/Storage Commander-Gunner | -8/Recycling Commander-Mutant | -8/Scraptown Scavenger-Tank | -6/Factory Scavenger-Tank | -5/Factory Scavenger-Gunner | -5/Upper Caves Scavenger-Tank | -5/Upper Caves Scavenger-Gunner | -5/Warlord Scavenger-Gunner | -4/Proximity Caves Scavenger-Gunner | -4/Factory Scavenger-Gunner | -4/Extension Scavenger-Gunner | -4/Cetus Scavenger-Gunner | -4/Archives Scavenger-Gunner | -3/Research Mutant | -3/Testing Hacker-Mutant | -2/Research Hacker-Mutant | -2/Quarantine Hacker-Mutant | -1/Access Resources | -11 -10 -10 -8 -8 -8 -8 -6 -5 -5 -5 -5 -4 -4 -4 -4 -4 -3 -3 -2 -2 -1 ----------- Run | Yrd Mat Sub Mat Sto Rec Scr Fac Fac Upp Upp War Pro Fac Ext Cet Arc Res Tes Res Qua Acc Matter Collected 5573 | 225 233 135 207 266 20 79 247 593 164 347 217 363 84 1590 18 273 304 . 200 . 8 Remotely 523 | . . . . . . . . 523 . . . . . . . . . . . . . Salvage Created 10111 | . 308 351 907 822 56 . 79 880 414 1472 696 534 84 2450 112 254 492 . 200 . . Parts 372 | . 21 25 39 28 2 . 6 25 15 29 20 25 4 102 5 10 9 . 7 . . Haulers Intercepted 3 | . 1 . 1 1 . . . . . . . . . . . . . . . . . Recyclers Shooed 2 | . 1 . 1 . . . . . . . . . . . . . . . . . . Parts Field Recycled . | . . . . . . . . . . . . . . . . . . . . . . Retrieved Matter . | . . . . . . . . . . . . . . . . . . . . . . Parts Self-Destructed 70 | . . 10 . . . . . . 8 24 . 28 . . . . . . . . . Prevented 8 | . . . . . . . . . 2 5 . 1 . . . . . . . . . Kills | -11 -10 -10 -8 -8 -8 -8 -6 -5 -5 -5 -5 -4 -4 -4 -4 -4 -3 -3 -2 -2 -1 ------- Run | Yrd Mat Sub Mat Sto Rec Scr Fac Fac Upp Upp War Pro Fac Ext Cet Arc Res Tes Res Qua Acc Combat Hostiles Destroyed 160 | . 8 10 12 9 1 . 1 14 8 24 13 16 2 28 4 3 7 . . . . Melee 1 | . . . . . . . . . . . . . . . . . 1 . . . . Guns 72 | . 8 2 . 2 1 . 1 6 8 10 2 10 . 16 1 1 4 . . . . Cannons 35 | . . 7 11 1 . . . . . . . . 1 12 1 2 . . . . . AOE 40 | . . . . 5 . . . 6 . 9 10 5 1 . 2 . 2 . . . . Classes Destroyed 20 | . 3 1 5 3 . . 1 1 1 1 2 . . . . . 2 . . . . Worker 3 | . . . . . . . . . . . . . . . . . 1 . 2 . . Builder 3 | . . . 1 . . . 1 . . . . . . 1 . . . . . . . Tunneler 1 | . . . 1 . . . . . . . . . . . . . . . . . . Hauler 3 | . 1 . 1 1 . . . . . . . . . . . . . . . . . Recycler 9 | . . . 1 1 . . . 1 . . . . . 4 . . 1 . 1 . . Mechanic 2 | . . . . 1 . . . . . . . . . 1 . . . . . . . Operator 3 | . . . . . . . 1 . . . . . . 1 . 1 . . . . . Watcher 6 | . . . 3 . . . . . . . . . . . 1 . 1 . 1 . . Swarmer 30 | . 3 3 . . . . . . 4 2 2 10 . 6 . . . . . . . Saboteur 3 | . . . . . . . . . . . 3 . . . . . . . . . . Grunt 70 | . 5 2 9 7 . . 1 8 . 16 5 3 . 11 . . 3 . . . . Brawler 6 | . . . . . . . . . . 1 2 1 . 2 . . . . . . . Duelist 5 | . . . . 1 . . . . . 3 . 1 . . . . . . . . . Sentry 18 | . . . 3 . 1 . . 2 1 2 . 1 1 4 . 3 . . . . . Specialist 1 | . . . . . . . . . . . . . . . . . 1 . . . . Hunter 9 | . . . . 1 . . . 2 2 . . . . 2 . . 2 . . . . Programmer 4 | . . . . . . . . 2 . . . . 1 . . . 1 . . . . Cetus Guard 4 | . . . . . . . . . . . . . . . 4 . . . . . . Striker 1 | . . . . . . . . . . . 1 . . . . . . . . . . Subdweller 5 | . . 5 . . . . . . . . . . . . . . . . . . . Thug 5 | . . . . 2 . . . . . . . . . 3 . . . . . . . Savage 1 | . . . . . . . . . . . . . . 1 . . . . . . . Guerrilla 1 | . . . . . . . . . . . . . . 1 . . . . . . . Mutant 1 | . . . . . . . . . 1 . . . . . . . . . . . . Best Kill Streak 13 | . 3 3 4 8 1 . 2 5 4 13 10 4 2 7 5 2 6 . 3 . . Combat Bots Only 13 | . 3 3 3 8 1 . 1 4 4 13 10 4 2 6 4 2 4 . . . . Max Kills in Single Turn 5 | . 1 1 2 5 1 . 2 1 2 3 2 4 1 3 2 1 1 . 1 . . Gunslinging 1 | . . . . . . . . . 1 . . . . . . . . . . . . Exploded 4 | . . . . 4 . . . 1 . 3 2 4 1 . 2 . 1 . . . . Melee 1 | . . . . . . . . . . . . . . . . . 1 . . . . Uniques/NPCs Destroyed . | . . . . . . . . . . . . . . . . . . . . . . Combat | -11 -10 -10 -8 -8 -8 -8 -6 -5 -5 -5 -5 -4 -4 -4 -4 -4 -3 -3 -2 -2 -1 -------- Run | Yrd Mat Sub Mat Sto Rec Scr Fac Fac Upp Upp War Pro Fac Ext Cet Arc Res Tes Res Qua Acc Hostile Shots Fired 1137 | . 23 50 68 13 2 . 4 138 57 83 41 126 6 129 25 49 130 13 26 . 154 Missed 357 | . 2 18 19 2 1 . 1 35 20 23 15 34 2 30 7 17 49 7 14 . 61 Damage Taken 16745 | . 218 605 892 207 18 . 184 1958 646 1502 452 2028 143 1852 467 860 2042 120 306 . 2245 Core 3384 | . 35 67 141 106 . . 49 186 41 108 32 271 . 209 52 111 1091 120 106 . 659 Absorbed by Shields 138 | . . . . . . . . . . . 37 77 . 24 . . . . . . . Redirected to Shielding 185 | . 31 . . . . . 6 72 . 76 . . . . . . . . . . . Regen/Repaired (Parts) 255 | . . . . . . . . . . . 255 . . . . . . . . . . Core Remaining (%) 63 | 100 . 59 . . . 55 94 . . . . 36 . . . 67 . 6 . 92 58 Volleys Fired 426 | . 28 33 47 16 5 . 5 50 20 44 16 40 4 74 7 16 21 . . . . Largest 4 | . 2 2 3 3 3 . 4 4 4 4 4 4 4 4 4 4 4 . . . . Hottest 313 | . 40 160 240 201 201 . 266 270 284 313 313 313 154 188 162 140 152 . . . . Shots Fired 1101 | . 56 67 95 36 15 . 17 99 75 148 33 80 10 237 25 61 47 . . . . Gun 795 | . 56 20 . 31 15 . 17 83 75 139 20 80 6 158 13 45 37 . . . . Cannon 249 | . . 47 95 1 . . . . . . . . 4 79 7 16 . . . . . Launcher 57 | . . . . 4 . . . 16 . 9 13 . . . 5 . 10 . . . . Special . | . . . . . . . . . . . . . . . . . . . . . . Kinetic 443 | . 56 . . . . . . 15 . . . 21 10 237 20 61 23 . . . . Thermal 516 | . . 67 95 32 15 . 17 60 59 129 20 22 . . . . . . . . . Explosive 22 | . . . . . . . . 1 . 2 4 . . . 5 . 10 . . . . Electromagnetic 78 | . . . . 4 . . . 23 16 17 9 9 . . . . . . . . . Entropic 42 | . . . . . . . . . . . . 28 . . . . 14 . . . . Robot Hit Streak 32 | . 9 17 14 15 7 . 7 10 23 12 15 16 3 15 11 32 16 . . . . Robot Miss Streak 8 | . 4 1 2 2 1 . 1 3 4 4 2 8 2 6 5 1 3 . . . . Penetration Max 2 | . . . . . . . . . . . . 1 . 2 1 . . . . . . Secondary Targets 8 | . . . . . . . . 1 1 1 1 2 . 1 . . 1 . . . . Max Gunslinging Chain 1 | . . . . . . . . 1 1 1 1 1 . 1 . . 1 . . . . Shots Hit Robots 744 | . 34 54 58 20 12 . 10 71 46 93 24 53 5 151 16 54 37 . 6 . . Core Hits 413 | . 14 14 26 24 3 . 5 35 20 52 42 30 6 69 23 21 26 . 3 . . Critical Kills 24 | . . 1 1 . . . . . . . . . . 16 2 3 1 . . . . Critical Parts Destroyed 41 | . . . . . . . . . . . . 3 . 34 2 2 . . . . . Critical Strikes 101 | . . 2 1 1 2 . . 3 2 7 1 4 . 56 5 14 3 . . . . Burn 17 | . . 1 . 1 2 . . 2 2 7 1 1 . . . . . . . . . Meltdown 2 | . . 1 1 . . . . . . . . . . . . . . . . . . Destroy 72 | . . . . . . . . . . . . . . 52 5 14 1 . . . . Blast 4 | . . . . . . . . . . . . . . 4 . . . . . . . Corrupt 1 | . . . . . . . . 1 . . . . . . . . . . . . . Sever 1 | . . . . . . . . . . . . . . . . . 1 . . . . Impale 1 | . . . . . . . . . . . . . . . . . 1 . . . . Detonate 3 | . . . . . . . . . . . . 3 . . . . . . . . . Melee Attacks 48 | . . . . . . . . . . . . 3 2 . . . 10 4 24 1 4 Impact . | . . . . . . . . . . . . . . . . . . . . . . Slashing 8 | . . . . . . . . . . . . 3 . . . . 5 . . . . Piercing 40 | . . . . . . . . . . . . . 2 . . . 5 4 24 1 4 Sneak Attacks 6 | . . . . . . . . . . . . . . . . . 3 . 3 . . Combat Hostiles . | . . . . . . . . . . . . . . . . . . . . . . Follow-up Attacks . | . . . . . . . . . . . . . . . . . . . . . . Damage Inflicted 24019 | . 453 958 1597 1152 248 . 215 2372 884 3133 2086 1900 367 3870 825 1010 2483 . 466 . . Guns 11316 | . 453 162 . 297 248 . 215 1310 884 1832 377 1382 62 2499 220 693 682 . . . . Cannons 4343 | . . 796 1591 26 . . . . . . . . 95 1371 147 317 . . . . . Explosions 7351 | . . . . 829 . . . 1062 . 1301 1709 440 210 . 458 . 1342 . . . . Melee 983 | . . . . . . . . . . . . 78 . . . . 439 . 466 . . Ramming 26 | . . . 6 . . . . . . . . . . . . . 20 . . . . Kinetic 7325 | . 453 . . . . . . 1040 . . . 177 157 3870 367 1010 251 . . . . Thermal 8568 | . . 958 1591 479 248 . 215 929 753 1987 566 842 . . . . . . . . . Explosive 2717 | . . . . . . . . 22 . 314 371 . 210 . 458 . 1342 . . . . Electromagnetic 3252 | . . . . 673 . . . 381 131 832 1149 86 . . . . . . . . . Impact . | . . . . . . . . . . . . . . . . . . . . . . Slashing 216 | . . . . . . . . . . . . 78 . . . . 138 . . . . Piercing 767 | . . . . . . . . . . . . . . . . . 301 . 466 . . Entropic 1148 | . . . . . . . . . . . . 717 . . . . 431 . . . . Highest Corruption 32 | . 2 2 . 8 8 8 1 6 6 32 32 25 . . . . 10 10 . . . Average Corruption 9 | . 1 2 . 8 8 8 1 3 6 23 32 24 . . . . 4 10 . . . Corruption Purged . | . . . . . . . . . . . . . . . . . . . . . . Corruption Blocked . | . . . . . . . . . . . . . . . . . . . . . . Effects 257 | . 5 14 . 18 16 90 2 8 19 45 3 30 . . . . 2 5 . . . Message Errors 74 | . 1 2 . 7 3 29 . . 6 16 1 8 . . . . 1 . . . . Matter Fused 68 | . 2 6 . 6 3 21 2 2 5 11 2 7 . . . . . 1 . . . Heat Flow Errors 31 | . 1 1 . 2 2 15 . . 1 3 . 4 . . . . . 2 . . . Energy Discharges 29 | . . 3 . 1 5 13 . 1 1 2 . 1 . . . . . 2 . . . Parts Rejected 1 | . . . . . . . . . . . . . . . . . 1 . . . . Parts Fused 1 | . . . . . . . . . 1 . . . . . . . . . . . . Data Loss (minor) 23 | . . 1 . . 1 8 . 2 1 3 . 7 . . . . . . . . . Data Loss (major) 8 | . . . . 1 1 4 . . 1 1 . . . . . . . . . . . Misfires 5 | . . 1 . 1 . . . 1 . 2 . . . . . . . . . . . Alerts 6 | . 1 . . . 1 . . 1 . 2 . 1 . . . . . . . . . Misdirections 1 | . . . . . . . . . . 1 . . . . . . . . . . . Weapon Failures 10 | . . . . . . . . 1 3 4 . 2 . . . . . . . . . Overload Shots . | . . . . . . . . . . . . . . . . . . . . . . Overflow Damage 340 | . . 10 32 28 . . . 75 . 24 . . . . . . 71 . 100 . . Projectiles 42 | . . 10 32 . . . . . . . . . . . . . . . . . . Explosions 156 | . . . . 28 . . . 75 . 24 . . . . . . 29 . . . . Melee 142 | . . . . . . . . . . . . . . . . . 42 . 100 . . Knockbacks 8 | . . . . . . . . . . . . . . 8 . . . . . . . Impact . | . . . . . . . . . . . . . . . . . . . . . . Kinetic 8 | . . . . . . . . . . . . . . 8 . . . . . . . Secondary . | . . . . . . . . . . . . . . . . . . . . . . Self-Inflicted Damage 591 | . . . 3 8 . . . 89 . 187 . 24 50 . . . 116 . . . 114 Shots 19 | . . . . 1 . . . 6 . 7 . 1 1 . . . 2 . . . 1 Rammed 3 | . . . 1 . . . . . . . . . . . . . 2 . . . . Targets Rammed 3 | . . . 1 . . . . . . . . . . . . . 2 . . . . Kicked . | . . . . . . . . . . . . . . . . . . . . . . Crushed . | . . . . . . . . . . . . . . . . . . . . . . Highest Temperature 389 | . 164 159 323 185 125 194 54 199 389 344 197 197 197 332 60 96 14 176 . . . Average Temperature 90 | . 84 43 94 37 43 87 28 101 157 126 117 96 111 60 34 22 10 76 . . . Received Heat Transfer 2932 | . 96 162 423 45 . . 45 540 27 327 138 257 9 329 9 135 51 33 63 . 243 Effects 4 | . . . . . . . . . 3 . . . . 1 . . . . . . . Shutdowns 1 | . . . . . . . . . 1 . . . . . . . . . . . . Energy Bleed 1 | . . . . . . . . . 1 . . . . . . . . . . . . Interference 1 | . . . . . . . . . . . . . . 1 . . . . . . . Matter Decay 1 | . . . . . . . . . 1 . . . . . . . . . . . . Siege Activations . | . . . . . . . . . . . . . . . . . . . . . . Robots Corrupted 5 | . . . . 2 . . . 1 . 2 . . . . . . . . . . . Combat Hostiles 4 | . . . . 1 . . . 1 . 2 . . . . . . . . . . . Parts Fried 17 | . . . . 5 . . . 3 1 4 4 . . . . . . . . . . Impact Corruptions . | . . . . . . . . . . . . . . . . . . . . . . Robots Melted 8 | . . 1 1 . . . . 1 . 3 1 1 . . . . . . . . . Combat Hostiles 8 | . . 1 1 . . . . 1 . 3 1 1 . . . . . . . . . Parts Melted 48 | . . 2 11 2 1 . 2 7 5 14 3 1 . . . . . . . . . Heat Transferred 15984 | . . 1850 3100 967 592 . 444 1850 1480 3752 872 1077 . . . . . . . . . Parts Sabotaged 2 | . . . . . . . . . . 2 . . . . . . . . . . . Parts Stolen . | . . . . . . . . . . . . . . . . . . . . . . Parts Stripped . | . . . . . . . . . . . . . . . . . . . . . . Power Chain Reactions 6 | . . . . 2 . . . . . 1 3 . . . . . . . . . . Alert | -11 -10 -10 -8 -8 -8 -8 -6 -5 -5 -5 -5 -4 -4 -4 -4 -4 -3 -3 -2 -2 -1 ------- Run | Yrd Mat Sub Mat Sto Rec Scr Fac Fac Upp Upp War Pro Fac Ext Cet Arc Res Tes Res Qua Acc Peak Influence 1051 | . 265 . 259 577 283 . 54 355 . . . . 347 1051 735 380 295 236 369 230 634 Initial 582 | . . . 26 79 172 . . . . . . . 75 169 582 294 133 144 132 201 137 Average 278 | . 134 . 127 342 226 . 13 182 . . . . 245 631 708 340 170 177 245 211 278 Maximum Alert Level 3 | . 1 . 1 2 1 . . 1 . . . . 1 3 3 1 1 1 1 1 2 Low Security (%) 48 | 100 66 . 90 29 15 . 100 58 . . . . 37 4 . . 70 81 38 . 46 Level 1 31 | . 33 . 9 29 84 . . 41 . . . . 62 24 . 100 29 18 61 100 29 Level 2 9 | . . . . 40 . . . . . . . . . 19 21 . . . . . 23 Level 3 10 | . . . . . . . . . . . . . . 51 78 . . . . . . Level 4 . | . . . . . . . . . . . . . . . . . . . . . . Level 5 . | . . . . . . . . . . . . . . . . . . . . . . High Security . | . . . . . . . . . . . . . . . . . . . . . . Max Security . | . . . . . . . . . . . . . . . . . . . . . . Squads Dispatched 22 | . 2 . 2 2 . . 1 5 . 1 . . 1 3 . . 2 . 2 . 1 Investigation 1 | . . . . . . . . . . . . . . . . . . . 1 . . Extermination 3 | . . . . . . . . 2 . . . . . . . . . . 1 . . Reinforcement 13 | . 2 . 2 . . . 1 3 . . . . 1 1 . . 2 . . . 1 Assault 5 | . . . . 2 . . . . . 1 . . . 2 . . . . . . . Garrison . | . . . . . . . . . . . . . . . . . . . . . . Intercept . | . . . . . . . . . . . . . . . . . . . . . . Searches Triggered . | . . . . . . . . . . . . . . . . . . . . . . Construction Impeded 1 | . . . . . . . . . . . . . . 1 . . . . . . . Haulers Reinforced 2 | . . . . . . . . . . . . . 1 . . . 1 . . . . Active Scanning Responses . | . . . . . . . . . . . . . . . . . . . . . . Cargo Convoy Interrupts . | . . . . . . . . . . . . . . . . . . . . . . Stealth | -11 -10 -10 -8 -8 -8 -8 -6 -5 -5 -5 -5 -4 -4 -4 -4 -4 -3 -3 -2 -2 -1 --------- Run | Yrd Mat Sub Mat Sto Rec Scr Fac Fac Upp Upp War Pro Fac Ext Cet Arc Res Tes Res Qua Acc Distress Signals 16 | . 2 . 2 . . . . 1 . . . . . 5 1 . 2 . . . 3 Communications Jammed . | . . . . . . . . . . . . . . . . . . . . . . Distress Signals . | . . . . . . . . . . . . . . . . . . . . . . Times Spotted 347 | . 17 10 24 23 3 . 4 22 8 34 51 17 2 49 4 6 12 4 9 . 48 Peak Tracking Total 18 | . 6 3 7 8 1 . 3 4 3 9 12 5 1 5 5 2 4 5 6 . 18 Tactical Retreats 35 | . 1 . 3 . . . 1 . . 5 6 . . 5 . . . 2 4 . 8 Traps | -11 -10 -10 -8 -8 -8 -8 -6 -5 -5 -5 -5 -4 -4 -4 -4 -4 -3 -3 -2 -2 -1 ------- Run | Yrd Mat Sub Mat Sto Rec Scr Fac Fac Upp Upp War Pro Fac Ext Cet Arc Res Tes Res Qua Acc Traps Triggered 18 | . 2 . 1 3 . . 2 2 . . . . . 8 . . . . . . . Indirectly . | . . . . . . . . . . . . . . . . . . . . . . Trap Hack Attempts . | . . . . . . . . . . . . . . . . . . . . . . Triggered . | . . . . . . . . . . . . . . . . . . . . . . Disarmed . | . . . . . . . . . . . . . . . . . . . . . . Reprogrammed . | . . . . . . . . . . . . . . . . . . . . . . Reused . | . . . . . . . . . . . . . . . . . . . . . . Traps Extracted . | . . . . . . . . . . . . . . . . . . . . . . Installed . | . . . . . . . . . . . . . . . . . . . . . . Triggered 6 | . . . . . . . . . . . 6 . . . . . . . . . . Machines | -11 -10 -10 -8 -8 -8 -8 -6 -5 -5 -5 -5 -4 -4 -4 -4 -4 -3 -3 -2 -2 -1 ---------- Run | Yrd Mat Sub Mat Sto Rec Scr Fac Fac Upp Upp War Pro Fac Ext Cet Arc Res Tes Res Qua Acc Machines Disabled 27 | . . . 1 2 . . . 2 1 . 2 . 6 3 . 1 4 2 1 1 1 Max in Single Turn 2 | . . . 1 1 . . . 1 1 . 2 . 2 1 . 1 2 1 1 1 1 Energy Cycler 2 | . . . . . . . . . . . . . . 1 . . . . . . 1 Machines Repaired . | . . . . . . . . . . . . . . . . . . . . . . Machines Dismantled . | . . . . . . . . . . . . . . . . . . . . . . Machines Sabotaged . | . . . . . . . . . . . . . . . . . . . . . . Overloaded Fab Kills . | . . . . . . . . . . . . . . . . . . . . . . Hacking | -11 -10 -10 -8 -8 -8 -8 -6 -5 -5 -5 -5 -4 -4 -4 -4 -4 -3 -3 -2 -2 -1 --------- Run | Yrd Mat Sub Mat Sto Rec Scr Fac Fac Upp Upp War Pro Fac Ext Cet Arc Res Tes Res Qua Acc Machines Accessed 42 | . 4 1 2 7 1 2 2 . . 1 3 . 2 6 . . 2 1 3 3 2 Terminals 35 | . 4 . 2 7 1 . 2 . . . . . 2 6 . . 2 1 3 3 2 Fabricators . | . . . . . . . . . . . . . . . . . . . . . . Repair Stations . | . . . . . . . . . . . . . . . . . . . . . . Recycling Units . | . . . . . . . . . . . . . . . . . . . . . . Scanalyzers . | . . . . . . . . . . . . . . . . . . . . . . Garrison Access . | . . . . . . . . . . . . . . . . . . . . . . Total Hacks 100 | . 7 3 5 11 2 10 4 . . 1 9 . 4 16 . . 2 1 8 12 5 Successful 54 | . 5 3 2 4 . 10 2 . . 1 9 . 2 5 . . . . 2 7 2 Failed 46 | . 2 . 3 7 2 . 2 . . . . . 2 11 . . 2 1 6 5 3 Catastrophic 10 | . 1 . . 2 . . . . . . . . . 2 . . 1 . 3 1 . Database Lockouts . | . . . . . . . . . . . . . . . . . . . . . . Manual 55 | . 7 . 5 9 . . 1 . . . . . 3 12 . . . . 7 8 3 Terminals 77 | . 7 . 5 11 2 . 4 . . . . . 4 16 . . 2 1 8 12 5 Fabricators . | . . . . . . . . . . . . . . . . . . . . . . Repair Stations . | . . . . . . . . . . . . . . . . . . . . . . Recycling Units . | . . . . . . . . . . . . . . . . . . . . . . Scanalyzers . | . . . . . . . . . . . . . . . . . . . . . . Garrison Access . | . . . . . . . . . . . . . . . . . . . . . . Terminal Hacks 41 | . . 3 1 4 . 10 2 . . 1 9 . 1 3 . . . . 1 4 2 Record 14 | . . 3 . . . 3 . . . . 8 . . . . . . . . . . Robot Analysis 7 | . . . . . . 7 . . . . . . . . . . . . . . . Open Door 8 | . . . . 3 . . . . . 1 1 . 1 2 . . . . . . . Open DSF 1 | . . . . . . . 1 . . . . . . . . . . . . . . Level Access Points 3 | . . . . . . . 1 . . . . . . . . . . . . 1 1 Branch Access Points 4 | . . . 1 1 . . . . . . . . . . . . . . . 1 1 Terminal Index 1 | . . . . . . . . . . . . . . . . . . . 1 . . Unreport Threat 1 | . . . . . . . . . . . . . . 1 . . . . . . . Locate Traps 1 | . . . . . . . . . . . . . . . . . . . . 1 . Dispatch Records 1 | . . . . . . . . . . . . . . . . . . . . 1 . Fabricator Hacks . | . . . . . . . . . . . . . . . . . . . . . . Repair Station Hacks . | . . . . . . . . . . . . . . . . . . . . . . Recycling Unit Hacks . | . . . . . . . . . . . . . . . . . . . . . . Scanalyzer . | . . . . . . . . . . . . . . . . . . . . . . Garrison Access Hacks . | . . . . . . . . . . . . . . . . . . . . . . Unauthorized Hacks 13 | . 5 . 1 . . . . . . . . . 1 2 . . . . 1 3 . Terminals 13 | . 5 . 1 . . . . . . . . . 1 2 . . . . 1 3 . Botnet 11 | . 3 . 1 . . . . . . . . . 1 2 . . . . 1 3 . Skim 2 | . 2 . . . . . . . . . . . . . . . . . . . . Fabricators . | . . . . . . . . . . . . . . . . . . . . . . Repair Stations . | . . . . . . . . . . . . . . . . . . . . . . Recycling Units . | . . . . . . . . . . . . . . . . . . . . . . Scanalyzers . | . . . . . . . . . . . . . . . . . . . . . . Garrison Access . | . . . . . . . . . . . . . . . . . . . . . . Data Cores Recovered . | . . . . . . . . . . . . . . . . . . . . . . Used . | . . . . . . . . . . . . . . . . . . . . . . Hacking Detections 30 | . 4 . 2 5 1 . 1 . . . . . 2 4 . . 2 1 3 3 2 Full Trace Events 1 | . . . . . . . . . . . . . . . . . . . 1 . . Feedback Events . | . . . . . . . . . . . . . . . . . . . . . . Feedback Blocked . | . . . . . . . . . . . . . . . . . . . . . . Robot Schematics Acquired . | . . . . . . . . . . . . . . . . . . . . . . Robots Built . | . . . . . . . . . . . . . . . . . . . . . . Authchips . | . . . . . . . . . . . . . . . . . . . . . . Time . | . . . . . . . . . . . . . . . . . . . . . . Total Robot Build Rating . | . . . . . . . . . . . . . . . . . . . . . . Part Schematics Acquired . | . . . . . . . . . . . . . . . . . . . . . . Parts Built . | . . . . . . . . . . . . . . . . . . . . . . Authchips . | . . . . . . . . . . . . . . . . . . . . . . Time . | . . . . . . . . . . . . . . . . . . . . . . Total Part Build Rating . | . . . . . . . . . . . . . . . . . . . . . . Parts Repaired . | . . . . . . . . . . . . . . . . . . . . . . Time . | . . . . . . . . . . . . . . . . . . . . . . Parts Recycled . | . . . . . . . . . . . . . . . . . . . . . . Recycled Matter . | . . . . . . . . . . . . . . . . . . . . . . Retrieved Matter . | . . . . . . . . . . . . . . . . . . . . . . Retrieved Components . | . . . . . . . . . . . . . . . . . . . . . . Parts Scanalyzed . | . . . . . . . . . . . . . . . . . . . . . . Part Schematics Acquired . | . . . . . . . . . . . . . . . . . . . . . . Parts Damaged . | . . . . . . . . . . . . . . . . . . . . . . Bothacking | -11 -10 -10 -8 -8 -8 -8 -6 -5 -5 -5 -5 -4 -4 -4 -4 -4 -3 -3 -2 -2 -1 ------------ Run | Yrd Mat Sub Mat Sto Rec Scr Fac Fac Upp Upp War Pro Fac Ext Cet Arc Res Tes Res Qua Acc Used RIF Installer . | . . . . . . . . . . . . . . . . . . . . . . Robots Hacked . | . . . . . . . . . . . . . . . . . . . . . . Non-combat . | . . . . . . . . . . . . . . . . . . . . . . Combat . | . . . . . . . . . . . . . . . . . . . . . . Robot Hacks Applied . | . . . . . . . . . . . . . . . . . . . . . . Relay Couplers Released . | . . . . . . . . . . . . . . . . . . . . . . Fabnet Peak Effective % . | . . . . . . . . . . . . . . . . . . . . . . Robots Rewired 29 | . . . . . 7 . . . 3 2 . . . 17 . . . . . . . Allies Hacked . | . . . . . . . . . . . . . . . . . . . . . . Hacks Repelled . | . . . . . . . . . . . . . . . . . . . . . . Allies | -11 -10 -10 -8 -8 -8 -8 -6 -5 -5 -5 -5 -4 -4 -4 -4 -4 -3 -3 -2 -2 -1 -------- Run | Yrd Mat Sub Mat Sto Rec Scr Fac Fac Upp Upp War Pro Fac Ext Cet Arc Res Tes Res Qua Acc Total Allies 48 | . . . . 12 7 . . . 3 2 . . . 24 . . . . . . . Largest Group 16 | . . . . 10 16 16 16 1 3 3 . . . 10 . . . . . . . Highest-Rated Group 554 | . . . . 173 251 251 251 15 75 75 . . . 554 . . . . . . . Highest-Rated Ally 159 | . . . . 31 29 29 29 15 25 30 . . . 159 . . . . . . . Total Orders . | . . . . . . . . . . . . . . . . . . . . . . Ally Attacks 280 | . . . . 65 11 . 29 3 . 25 . . . 147 . . . . . . . Total Damage 5414 | . . . . 794 151 . 172 53 . 384 . . . 3860 . . . . . . . Kills 42 | . . . . 9 2 . 1 . . 2 . . . 28 . . . . . . . Allies Corrupted 3 | . . . . . . . 2 . . . . . . 1 . . . . . . . Allies Melted 3 | . . . . . . . . . . . 2 . . 1 . . . . . . . Intel | -11 -10 -10 -8 -8 -8 -8 -6 -5 -5 -5 -5 -4 -4 -4 -4 -4 -3 -3 -2 -2 -1 ------- Run | Yrd Mat Sub Mat Sto Rec Scr Fac Fac Upp Upp War Pro Fac Ext Cet Arc Res Tes Res Qua Acc Robot Analysis Total 7 | . . . . . . 7 . . . . . . . . . . . . . . . Derelict Logs Recovered 8 | . . . . . . 4 . . 1 1 . 2 . . . . . . . . . Drone Launches . | . . . . . . . . . . . . . . . . . . . . . . Drone Recoveries . | . . . . . . . . . . . . . . . . . . . . . . Decoded 0b10 Intel 37 | . . . . . . . . . . . . . 10 27 . . . . . . . Items 37 | . . . . . . . . . . . . . 10 27 . . . . . . . Exploration | -11 -10 -10 -8 -8 -8 -8 -6 -5 -5 -5 -5 -4 -4 -4 -4 -4 -3 -3 -2 -2 -1 ------------- Run | Yrd Mat Sub Mat Sto Rec Scr Fac Fac Upp Upp War Pro Fac Ext Cet Arc Res Tes Res Qua Acc Turns Passed 14295 | 56 665 945 1179 849 454 2548 474 781 713 929 674 661 172 1366 142 170 526 151 289 91 460 Spaces Moved 9244 | 47 361 652 644 491 253 1248 289 430 477 446 420 437 226 682 100 65 396 209 459 150 762 Core 850 | 5 . . . . . . . . . . . . . . . . 108 74 3 150 510 Treads 72 | 1 . . . 71 . . . . . . . . . . . . . . . . . Legs 2161 | . . . . . . . 6 59 477 428 420 162 . 156 100 65 288 . . . . Wheels 4297 | 41 361 652 644 420 253 1248 283 371 . 18 . 6 . . . . . . . . . Hover 1021 | . . . . . . . . . . . . 269 226 526 . . . . . . . Flight 843 | . . . . . . . . . . . . . . . . . . 135 456 . 252 Fastest Speed 34 | 50 100 115 115 130 115 115 130 100 120 120 120 58 54 54 120 120 50 40 37 50 34 Average Speed 108 | 95 107 119 142 148 128 115 131 123 120 146 121 106 59 107 120 120 102 59 42 50 52 Slowest Speed 320 | 160 115 130 145 320 130 115 190 260 120 190 190 260 118 260 120 120 190 250 90 50 115 Overloaded Moves . | . . . . . . . . . . . . . . . . . . . . . . Propulsion Burnouts . | . . . . . . . . . . . . . . . . . . . . . . Robots Hopped 14 | . . . . . . . . . . . . . . . . . . 2 2 . 10 Cave-ins Triggered . | . . . . . . . . . . . . . . . . . . . . . . Exploration Rate (%) 42 | 3 74 53 48 77 52 81 5 11 60 59 50 58 6 66 54 61 11 37 16 23 30 Regions Visited 21 Branch Regions 13 Pre-discovered Areas 2 | . . . . . . 2 . . . . . . . . . . . . . . . Known Exits Taken 9 | . . . 1 1 1 1 1 1 1 . . . . . . . . . 1 1 . Unknown Exits Taken 12 | 1 1 1 . . . . . . . 1 1 1 1 1 1 1 1 1 . . . Scrap Searched 14 | . . 5 . . . 2 . . 1 3 . 3 . . . . . . . . . Spaces Dug 32 | . . . 3 . . . . . . . . . 2 10 . . . 1 13 . 3 Terrain Destroyed 656 | . . 1 22 11 . . . 100 . 14 16 79 51 48 105 3 166 1 13 . 26 Melee 19 | . . . . . . . . . . . . . 2 . . . . 1 13 . 3 Projectile 145 | . . 1 22 . . . . . . . . 52 . 47 . 3 20 . . . . AOE 491 | . . . . 11 . . . 100 . 14 16 27 49 . 105 . 146 . . . 23 Terrain Rammed . | . . . . . . . . . . . . . . . . . . . . . . Walls Destroyed . | . . . . . . . . . . . . . . . . . . . . . . Machines Disabled . | . . . . . . . . . . . . . . . . . . . . . . Actions | -11 -10 -10 -8 -8 -8 -8 -6 -5 -5 -5 -5 -4 -4 -4 -4 -4 -3 -3 -2 -2 -1 --------- Run | Yrd Mat Sub Mat Sto Rec Scr Fac Fac Upp Upp War Pro Fac Ext Cet Arc Res Tes Res Qua Acc Total 12598 | 55 581 751 842 584 374 2361 369 593 572 624 556 556 252 1148 107 123 464 225 501 162 798 Wait 2102 | . 180 35 111 33 55 1110 49 42 50 81 104 40 14 111 . 37 17 . 10 2 21 Move 9194 | 46 360 651 643 490 252 1247 288 429 476 445 419 436 225 681 99 64 395 204 454 149 741 Hop 14 | . . . . . . . . . . . . . . . . . . 2 2 . 10 Pick Up 89 | 4 6 12 8 11 . 2 4 10 . 9 3 . 1 12 . 1 1 2 . 3 . Fast Attach 144 | 5 2 3 10 10 . . 7 16 2 10 2 17 3 25 . 1 4 5 6 3 13 Attach 63 | . . 1 4 4 . . 4 12 . 5 3 11 . 2 1 3 8 1 2 2 . Detach 17 | . . . 1 . 3 . . 3 . . . 3 . . . . 3 3 . . 1 Swap 64 | . 2 6 5 6 2 . 1 8 1 9 6 1 1 15 . 1 . . . . . Drop 112 | . 3 10 12 14 5 2 3 7 4 5 3 4 2 18 . . 3 4 3 2 8 Fire 426 | . 28 33 47 16 5 . 5 50 20 44 16 40 4 74 7 16 21 . . . . Melee 48 | . . . . . . . . . . . . 3 2 . . . 10 4 24 1 4 Ram 3 | . . . 1 . . . . . . . . . . . . . 2 . . . . Kick . | . . . . . . . . . . . . . . . . . . . . . . Crush . | . . . . . . . . . . . . . . . . . . . . . . Escape Stasis 87 | . . . . . . . 8 16 . . . . . 63 . . . . . . . Rewire 234 | . . . . . 52 . . . 19 16 . . . 147 . . . . . . . Trap . | . . . . . . . . . . . . . . . . . . . . . . Miscellaneous 1 | . . . . . . . . . . . . 1 . . . . . . . . . Route ------- -11/Scrapyard -10/Materials (discovered 4 exits: [*Mat] / [*Min x2] / *Sub) -10/Subcaves -8/Materials (discovered 2 exits: *Fac / *Sto) -8/Storage (discovered 2 exits: *Fac / *Rec) -8/Recycling (discovered 2 exits: *Fac / *Scr) -8/Scraptown (discovered 2 exits: *Fac x2) -6/Factory (discovered 4 exits: *Fac x4) -5/Factory -5/Upper Caves -5/Upper Caves (discovered 2 exits: *Fac / *War) -5/Warlord -4/Proximity Caves -4/Factory -4/Extension (discovered 2 exits: *Res / [*Cet]) -4/Cetus -4/Archives -3/Research -3/Testing -2/Research -2/Quarantine -1/Access (discovered 2 exits: *Sur / Com) To Fleet Rendezvous History --------- Turn | Location | Event 3 | -11/Scrapyard | Discovered new exit (range 15) 57 | -11/Scrapyard | Entered Materials 57 | -10/Materials | Discovered new exit (range 8) 283 | -10/Materials | Discovered new exit (range 12) 306 | -10/Materials | Build established: Mutant 438 | -10/Materials | Discovered new exit (range 16) 696 | -10/Materials | Discovered new exit (range 7) 722 | -10/Materials | Entered Subcaves 1116 | -10/Subcaves | A swath of the cavern ceiling suddenly collapsed 1223 | -10/Subcaves | A swath of the cavern ceiling suddenly collapsed 1388 | -10/Subcaves | Visited Clippyterm 1392 | -10/Subcaves | Learned Factory fabricator intel 1459 | -10/Subcaves | Disturbed a concealed Subdweller 1524 | -10/Subcaves | Shifting Twisted Machinery released Sub. Machine Gun 1536 | -10/Subcaves | Shifting Twisted Machinery released Sub. Machine Gun 1647 | -10/Subcaves | Discovered new exit (range 14) 1667 | -10/Subcaves | Entered Materials 1667 | -8/Materials | Evolved 4 slots: Utility x3, Weapon x1 1996 | -8/Materials | Build established: Skirmisher 2303 | -8/Materials | Discovered new exit (range 3) 2476 | -8/Materials | Build established: Scavenger-Gunner 2484 | -8/Materials | Identified exit to Factory 2650 | -8/Materials | Identified exit to Storage 2846 | -8/Materials | Entered Storage 2873 | -8/Storage | Lost 3 parts (3w) 2882 | -8/Storage | Met a pair of Derelict thieves 3060 | -8/Storage | Destroyed 8 combat bots 3123 | -8/Storage | Assisted by bots powering up and referring to "LRC-V3" 3540 | -8/Storage | Discovered exit to Factory (range 16) 3573 | -8/Storage | Build established: Commander-Gunner 3643 | -8/Storage | Identified exit to Recycling 3679 | -8/Storage | Used back door to open Recycling access 3695 | -8/Storage | Entered Recycling 3695 | -8/Recycling | Accompanied by 9 allies 4051 | -8/Recycling | Discovered new exit (range 9) 4093 | -8/Recycling | Scanned before Scraplab entrance 4112 | -8/Recycling | Entered Scraplab 4122 | -8/Recycling | Discovered new exit (range 4) 4124 | -8/Recycling | Identified exit to Scraptown 4149 | -8/Recycling | Entered Scraptown 4149 | -8/Scraptown | Accompanied by 16 allies 4383 | -8/Scraptown | Visited SPCMW 4389 | -8/Scraptown | Build established: Commander-Mutant 4409 | -8/Scraptown | Visited Cave Peace 4475 | -8/Scraptown | Visited Symbiants 4497 | -8/Scraptown | Visited CPS Storage 4538 | -8/Scraptown | Visited Cyclists 4592 | -8/Scraptown | Scanned Subdweller tech in exchange for log data 4595 | -8/Scraptown | Learned location of Quarantine (-2) 4596 | -8/Scraptown | Learned location of Testing (-3) 4597 | -8/Scraptown | Learned Factory security intel 4609 | -8/Scraptown | Discovered new exit (range 11) 4695 | -8/Scraptown | Visited UFD Registry 4695 | -8/Scraptown | Registered with UFD as "Thunderslasher" 4743 | -8/Scraptown | Visited Cartography Club 4767 | -8/Scraptown | Visited Analyses Database 4798 | -8/Scraptown | Visited Botcube Research 4807 | -8/Scraptown | Found Lrg. Botcube 4833 | -8/Scraptown | Visited Modified Component R&D 4913 | -8/Scraptown | Discovered new exit (range 5) 4996 | -8/Scraptown | Visited Research Penetration Think Tank 5027 | -8/Scraptown | Visited Scrap Suit Storage 5060 | -8/Scraptown | Visited Curators Association 5126 | -8/Scraptown | Delivered Scrap Shield to a Scientist 5241 | -8/Scraptown | Visited Abandonware Association 5289 | -8/Scraptown | Visited Chapter 10 5331 | -8/Scraptown | Visited Derelict Rescue Squad 5340 | -8/Scraptown | Found DRS Beacon 6667 | -8/Scraptown | Identified exit to Factory 6697 | -8/Scraptown | Entered Factory 6697 | -6/Factory | Accompanied by 16 allies 6697 | -6/Factory | Evolved 4 slots: Propulsion x2, Utility x1, Weapon x1 6699 | -6/Factory | Loaded intel: 6 fabricator locations 6737 | -6/Factory | Identified exit to Factory 6794 | -6/Factory | Identified exit to DSF 6834 | -6/Factory | Lost 11 allies 7171 | -6/Factory | Entered another Factory area 7171 | -5/Factory | Accompanied by 1 ally 7171 | -5/Factory | Evolved 2 slots: Propulsion x1, Utility x1 7172 | -5/Factory | Identified exit to Upper Caves 7202 | -5/Factory | Build established: Scavenger-Tank 7321 | -5/Factory | Lost 7 parts (2n1u4w) 7525 | -5/Factory | Lost 4 parts (1n3w) 7626 | -5/Factory | Lost 5 parts (1p1n2u1w) 7828 | -5/Factory | Lost 3 parts (1n2w) 7952 | -5/Factory | Entered Upper Caves 7954 | -5/Upper Caves | UFD Scientist delivered a prototype 7956 | -5/Upper Caves | Found Prototype Protection 7956 | -5/Upper Caves | Identified Enh. Scrap Shield 8072 | -5/Upper Caves | Identified exit to Upper Caves 8261 | -5/Upper Caves | Build established: Scavenger-Gunner 8333 | -5/Upper Caves | Attracted the attention of an 0b10 checkpoint 8475 | -5/Upper Caves | Attacked by a delusional Derelict stockpiling Unaware 8665 | -5/Upper Caves | Entered another Upper Caves area 8665 | -5/Upper Caves | Accompanied by 3 allies 8722 | -5/Upper Caves | Lost 3 allies 8778 | -5/Upper Caves | Discovered new exit (range 9) 8886 | -5/Upper Caves | Attracted the attention of an 0b10 outpost 8932 | -5/Upper Caves | Lost 6 parts (3n2u1w) 8955 | -5/Upper Caves | Destroyed 13 combat bots 8958 | -5/Upper Caves | System corruption reached 10% 8967 | -5/Upper Caves | System corruption reached 30% 9096 | -5/Upper Caves | Learned Factory interactive machine intel 9190 | -5/Upper Caves | Build established: Scavenger-Tank 9229 | -5/Upper Caves | Attracted the attention of an 0b10 checkpoint 9262 | -5/Upper Caves | Found DCF Scrap (16 items) 9581 | -5/Upper Caves | Discovered new exit (range 11) 9594 | -5/Upper Caves | Entered Warlord 9647 | -5/Warlord | System corruption cleaned by Quarantine Array 9749 | -5/Warlord | Build established: Scavenger-Gunner 9773 | -5/Warlord | Visited the Vortex Lab 9782 | -5/Warlord | Found Prototype Energy Gun 9783 | -5/Warlord | Identified Vortex Rail 9787 | -5/Warlord | Warlord's base attacked by MAIN.C 9788 | -5/Warlord | Found Vortex Rail 10057 | -5/Warlord | Destroyed 10 combat bots 10071 | -5/Warlord | Warlord forces counterattacked 10139 | -5/Warlord | Spotted Striker 10158 | -5/Warlord | Destroyed Striker 10188 | -5/Warlord | Lost 4 allies 10232 | -5/Warlord | Spotted Striker 10253 | -5/Warlord | Discovered new exit (range 14) 10268 | -5/Warlord | Entered Proximity Caves 10289 | -4/Proximity Caves | Lost 11 allies 10327 | -4/Proximity Caves | Attracted the attention of an 0b10 checkpoint 10372 | -4/Proximity Caves | Core integrity fell below 50% 10407 | -4/Proximity Caves | Lost 13 parts (2p3n4u4w) 10440 | -4/Proximity Caves | Learned Research emergency access door positions 10549 | -4/Proximity Caves | Activated DRS Beacon 10576 | -4/Proximity Caves | Lost 5 parts (1p3n1u) 10886 | -4/Proximity Caves | Learned location of 1 exit from Upper Caves 10925 | -4/Proximity Caves | Discovered new exit (range 7) 10929 | -4/Proximity Caves | Entered Factory 10929 | -4/Factory | Evolved 2 slots: Power x1, Propulsion x1 10930 | -4/Factory | Loaded intel: 52 interactive machine locations 11097 | -4/Factory | Discovered new exit (range 9) 11101 | -4/Factory | Entered Extension 11326 | -4/Extension | Disrupted transfer network 11408 | -4/Extension | Rescued a captive Derelict 11408 | -4/Extension | Rescued a captive Derelict 11504 | -4/Extension | Lost 3 allies 11576 | -4/Extension | Rescued A7 11764 | -4/Extension | Energy Cycler disabled 11764 | -4/Extension | Rescued a captive Derelict 11766 | -4/Extension | Rescued a captive Derelict 11766 | -4/Extension | Rescued a captive Derelict 11767 | -4/Extension | Rescued a captive Derelict 11767 | -4/Extension | Rescued a captive Derelict 11768 | -4/Extension | Rescued a captive Derelict 11832 | -4/Extension | Extracted ID and sensor layout for unrecognized location from A7's data core 11877 | -4/Extension | Lost 5 allies 12066 | -4/Extension | Lost 4 allies 12101 | -4/Extension | First assault squad dispatched 12242 | -4/Extension | Lost 13 parts (2p6n1u4w) 12448 | -4/Extension | Discovered new exit (range 10) 12449 | -4/Extension | Discovered new exit (range 6) 12467 | -4/Extension | Entered Cetus 12481 | -4/Cetus | Spotted Cetus Guard 12482 | -4/Cetus | Spotted Cetus Guard 12483 | -4/Cetus | Spotted Cetus Guard 12493 | -4/Cetus | Destroyed Cetus Guard 12493 | -4/Cetus | Destroyed Cetus Guard 12496 | -4/Cetus | Spotted Cetus Guard 12497 | -4/Cetus | Destroyed Cetus Guard 12506 | -4/Cetus | Destroyed Cetus Guard 12591 | -4/Cetus | Discovered new exit (range 16) 12609 | -4/Cetus | Entered Archives 12765 | -4/Archives | Discovered new exit (range 13) 12779 | -4/Archives | Entered Research 12779 | -3/Research | Evolved 2 slots: Utility x1, Weapon x1 12793 | -3/Research | Lost 6 parts (2n1u3w) 13151 | -3/Research | Lost 3 parts (1p1n1w) 13253 | -3/Research | Lost 10 parts (1p5n4w) 13261 | -3/Research | Core integrity fell below 50% 13279 | -3/Research | Core integrity fell below 20% 13298 | -3/Research | System corruption reached 10% 13298 | -3/Research | Discovered new exit (range 14) 13305 | -3/Research | Entered Testing 13325 | -3/Testing | Lost 3 parts (2u1w) 13369 | -3/Testing | Found Prototype Energy Cannon 13369 | -3/Testing | Identified Potential Cannon 13454 | -3/Testing | Discovered new exit (range 5) 13456 | -3/Testing | Entered Research 13456 | -2/Research | Evolved 2 slots: Power x1, Propulsion x1 13583 | -2/Research | Found Prototype Device 13583 | -2/Research | Identified Thermal Barrier 13706 | -2/Research | Discovered new exit (range 18) 13745 | -2/Research | Identified exit to Quarantine 13745 | -2/Research | Entered Quarantine 13796 | -2/Quarantine | Identified exit to Access 13816 | -2/Quarantine | Found Alien Artifact 13832 | -2/Quarantine | Found Alien Artifact 13832 | -2/Quarantine | Identified Core Reset Matrix 13832 | -2/Quarantine | Identified Phase Armor 13832 | -2/Quarantine | Used Core Reset Matrix 13834 | -2/Quarantine | Discovered exit to Access (range 5) 13836 | -2/Quarantine | Detected hypermatrix surge 13836 | -2/Quarantine | Sensed 4 artifacts in vicinity 13836 | -2/Quarantine | Entered Access 13836 | -1/Access | Evolved 2 slots: Propulsion x1, Utility x1 13920 | -1/Access | Build established: Hacker-Mutant 13969 | -1/Access | Spotted B-99 Colossus 14052 | -1/Access | Energy Cycler disabled 14199 | -1/Access | Lost 5 parts (5n) 14217 | -1/Access | Identified exit to Command 14224 | -1/Access | Identified exit to Surface 14242 | -1/Access | Spotted B-99 Colossus 14244 | -1/Access | Spotted B-99 Colossus 14296 | *** | Heading to fleet! Last Messages --------------- 14263_ Slug penetrates H-88 Terminator. 14263_ Penetrated by Slug. 14265_ Slug penetrates Terminal. 14266_ ALERT: Hostiles spotted, dispatching reinforcements to Terminal A009. 14270_ Adv. Signal Interpreter destroyed. 14272_ Imp. Hacking Suite destroyed. 14273_ Penetrated by Slug. 14277_ C-30 ARC bursts open, deploying its payload. 14277_ G-73 Enforcer unfolds itself. 14279_ U-05 Engineer destroyed. 14280_ R-10 Processor collects Unknown Engine. 14284_ Acquired Q-thruster. 14286_ Dropped Centrium Leg. 14286_ Dropped Hdn. Centrium Heavy Treads. 14290_ C-30 ARC bursts open, deploying its payload. 14290_ P-80 Master unfolds itself. 14291_ Terminal disabled. 14294_ The Access Shell folds into the floor. [Achievement: Home At Last?] Map ----- +----------------------------------------------------+ | #################+### #?????????????????????? | | #?????????????? # #?????????????????????? | | ###???????????? # #?????????????????????? | | #???????????? " # #?????????????????????? | | #???????????# """ # #?????????????????????? | | #???????????# """ # +?????????????????????? | | #???????????# " # #?????????????????????? | | #???????????# # #?????????????????????? | | #???????????# # #?????????????????????? | | #???????????########### #?????????????????????? | | #????????????????????? ?????????????????????? | | #????????###?????????? ?????????????????????? | | #??????? ??????????? ????????????????????? | | #?????? ??????????? ????????????????????? | | ?????? ""??????????? ????????????????????? | | ??????] ""??#???????? ???????????????????? | | ????? "? #??????? ???????????????????? | | ???? ? S ????????""""""""????????????????????? | | ??? "" ????????????????????????????????????? | | #? "" #???????????????????????????????????? | | # "" #?????#""""""""""#??????????????????? | | # #?????# #??????????????????? | | + #?????# #??????????????????? | | # #?????# #??????????????????? | | ################???# "" #??????????????????? | | ??# ! #???# "@ #??????????????????? | | ??# #???# #??????????????????? | | ??# #???# #??????????????????? | | ??# #???# #??????????????????? | | ??# """"" #??## ##?????????????????? | | ??# """"" #??# #?????????????????? | | ??# """"" #??##" ##?????????????????? | | ??#/ """"" #???#"" #??????????????????? | | ??# """"" #???#"" #??????????????????? | | ??# ] """"" #???#T #??????????????????? | | ??# #???# #??????????????????? | | ??# == #???#"" #??????????????????? | | #####/########+#####""g ##?????????????????? | | ! " g w p " ????????? | | % "%" p %" ???????? | | ########################################?????????? | | ?????????????????????????????????????????????????? | | ?????????????????????????????????????????????????? | | ?????????????????????????????????????????????????? | | ?????????????????????????????????????????????????? | | ?????????????????????????????????????????????????? | | ?????????????????????????????????????????????????? | | ?????????????????????????????????????????????????? | | ?????????????????????????????????????????????????? | | ?????????????????????????????????????????????????? | +----------------------------------------------------+ Best States ------------- Heat Dissipation 87 Coolant Potential 160 Energy Generation 41 Energy Capacity 665 Matter Stores 300 Matter Capacity 300 Sight Range 20 Robot Scan Range 15 Terrain Scan Density 10 Additional Mass Support 16 Armor Coverage 800 Core Shielding 30 Propulsion Shielding 66 Weapon Shielding 33 Weapon Cycling 15 Evasion (%) 62 Targeting Accuracy 19 Melee Accuracy 8 Target Analysis 9 Core Analysis 6 Recoil Reduction 4 Energy Filtering 50 Offensive Hacking 36 Defensive Hacking 14 Item Schematics ----------------- None Robot Schematics ------------------ None Fabricated ------------ Nothing Alien Tech Used ----------------- Core Reset Matrix Achievements -------------- Home At Last? Challenges ------------ None Game ------ Seed TrapScrapArmor Manual? 0 Play Time 02:03:17 Cumulative 241.7 hours Start 2024.10.20 @ 18:58:53 End 2024.10.21 @ 17:09:27 Sessions 3 Manual Loads 0 Difficulty Rogue Special Mode None Game No. 301 Rogue 257 Adventurer 4 Explorer 40 Win Type 2 Total 12 Types 9/1/1/1/0/0/0/0/0 Lore% 50 Gallery% 72 Achievement% 62 Wizard Run 0 Options --------- Layout 0 ASCII 0 Keyboard 0 Movement Mouse Keybinds 0 Fullscreen 2 Font 24/Smallcaps Map View 76x50 Zoom Use 0% Tactical HUD 1 Map Filters NONE Filters NONE Steam 1 RUN: f42fa1d1-6dfc-412a-bb9e-338e8e9b996b